bitfinex-derivatives/quotes_SOLF0:USTF0_20250109
["timestamp","ask_amount","ask_price","bid_price","bid_amount"]
[1736427671111,10.58787268,190.6,190.46,4.58]
[1736427671318,2.626,190.51,190.48,2.6263]
[1736427672916,2.626,190.51,190.48,13.21417268]
[1736427673223,10.58787268,190.6,190.48,10.58787268]
[1736427673621,10.58787268,190.6,190.51,2.6259]
[1736427673922,2.6255,190.54,190.51,2.6259]
[1736427674723,2.6257,190.53,190.5,2.626]
[1736427676626,10.58787268,190.6,190.48,10.58787268]
[1736427676823,2.6259,190.51,190.48,13.21417268]
[1736427677320,2.6259,190.51,190.48,10.58787268]
[1736427677623,2.6258,190.52,190.49,2.6262]
[1736427680020,2.6257,190.53,190.5,2.626]
[1736427680220,2.6257,190.53,190.48,10.58787268]
[1736427680421,5.2492,190.61,190.48,10.58787268]
[1736427680721,12.08867268,190.63,190.51,10.58787268]
[1736427681923,1.5008,190.63,190.51,10.58787268]
[1736427682122,1.5008,190.63,190.54,10.58787268]
[1736427682631,170.63504209,190.65,190.57,10.58787268]
[1736427682927,169.00324209,190.65,190.6,10.58787268]
[1736427683523,1.6169,190.7,190.6,10.58787268]
[1736427683524,145.2518329,190.69,190.6,10.58787268]
[1736427684630,1.6169,190.7,190.6,10.58787268]
[1736427685222,2.6242,190.64,190.6,10.58787268]
[1736427686027,2.6242,190.64,190.6,13.21257268]
[1736427686329,2.6242,190.64,190.6,10.58787268]
[1736427687127,2.6242,190.64,190.61,2.6245]
[1736427688423,2.6245,190.62,190.6,15.16787268]
[1736427688621,10.58787268,190.69,190.57,10.58787268]
[1736427688823,10.58787268,190.69,190.56,4.58]
[1736427689027,2.6251,190.58,190.56,4.58]
[1736427690229,10.58787268,190.69,190.57,10.58787268]
[1736427690524,9.69246634,190.7,190.57,10.58787268]
[1736427691134,9.69246634,190.7,190.58,2.6249]
[1736427691335,2.6245,190.62,190.58,2.6249]
[1736427691635,9.69246634,190.7,190.57,10.58787268]
[1736427691935,2.6244,190.63,190.6,2.6246]
[1736427693939,1.6169,190.7,190.6,2.6246]
[1736427694133,2.6241,190.65,190.6,10.58787268]
[1736427694638,2.6241,190.65,190.62,2.6244]
[1736427695342,2.6241,190.65,190.61,2.6245]
[1736427695531,1.6169,190.7,190.61,2.6245]
[1736427695736,2.6242,190.64,190.61,2.6245]
[1736427696437,1.6169,190.7,190.6,10.58787268]
[1736427696633,15.16787268,190.69,190.57,10.58787268]
[1736427696937,15.16787268,190.69,190.54,12.21737268]
[1736427696938,10.58787268,190.66,190.54,12.21737268]
[1736427697139,1.5342,190.65,190.54,12.21737268]
[1736427697741,1.5342,190.65,190.57,10.58787268]
[1736427697939,1.5342,190.65,190.54,12.21737268]
[1736427698133,2.6245,190.62,190.55,2.6253]
[1736427698333,1.5342,190.65,190.54,12.21737268]
[1736427698944,1.5342,190.65,190.56,2.6252]
[1736427699335,1.5342,190.65,190.54,12.21737268]
[1736427699535,2.6247,190.61,190.57,13.21297268]
[1736427700036,1.6169,190.7,190.57,10.58787268]
[1736427700337,2.6243,190.63,190.6,2.6247]
[1736427701142,2.6243,190.63,190.6,13.21257268]
[1736427701338,2.6242,190.64,190.61,2.6245]
[1736427701837,2.6242,190.64,190.6,10.58787268]
[1736427702045,1.6169,190.7,190.6,15.16787268]
[1736427702244,1.6169,190.7,190.63,10.58787268]
[1736427702641,2.624,190.65,190.63,10.58787268]
[1736427702939,1.6169,190.7,190.6,10.58787268]
[1736427703135,12.20477268,190.7,190.57,13.21297268]
[1736427703342,10.58787268,190.67,190.54,12.21737268]
[1736427703542,1.5709,190.66,190.54,12.21737268]
[1736427703743,2.6247,190.6,190.56,2.6251]
[1736427704343,2.6253,190.56,190.54,10.58787268]
[1736427704540,10.58787268,190.64,190.54,10.58787268]
[1736427704745,3.081,190.63,190.54,10.58787268]
[1736427707042,2.6252,190.57,190.54,10.58787268]
[1736427707236,10.58787268,190.61,190.51,10.58787268]
[1736427707437,10.58787268,190.61,190.48,12.15377268]
[1736427707641,10.58787268,190.58,190.45,10.58787268]
[1736427707937,2.6261,190.5,190.45,13.21447268]
[1736427708137,2.6261,190.5,190.45,10.58787268]
[1736427708342,1.6222,190.56,190.45,10.58787268]
[1736427708545,2.6259,190.51,190.47,2.6264]
[1736427709944,1.6222,190.56,190.45,10.58787268]
[1736427710143,1.6018,190.55,190.45,10.58787268]
[1736427710747,2.6262,190.5,190.45,13.21457268]
[1736427710947,1.6018,190.55,190.45,13.21457268]
[1736427711145,2.6264,190.48,190.45,10.58787268]
[1736427711346,1.6018,190.55,190.45,10.58787268]
[1736427711542,12.18967268,190.55,190.45,10.58787268]
[1736427711743,2.6263,190.49,190.45,10.58787268]
[1736427712446,2.6264,190.48,190.45,10.58787268]
[1736427712651,12.18967268,190.55,190.45,10.58787268]
[1736427713251,1.6018,190.55,190.45,10.58787268]
[1736427713553,10.58787268,190.53,190.42,10.58787268]
[1736427713751,2.6269,190.45,190.42,10.58787268]
[1736427715055,2.627,190.44,190.42,10.58787268]
[1736427715252,4.58,190.52,190.39,10.58787268]
[1736427715452,10.58787268,190.5,190.39,10.58787268]
[1736427715651,3.0723,190.49,190.39,10.58787268]
[1736427716154,2.6271,190.43,190.39,13.21547268]
[1736427716345,3.0723,190.49,190.39,10.58787268]
[1736427716755,1.5117,190.49,190.39,10.58787268]
[1736427716950,1.5117,190.49,190.42,10.58787268]
[1736427719751,1.4772,190.54,190.42,10.58787268]
[1736427720252,1.6018,190.55,190.45,10.58787268]
[1736427720658,1.6018,190.55,190.42,15.16787268]
[1736427720856,1.6018,190.55,190.44,2.6268]
[1736427721254,10.58787268,190.53,190.42,15.16787268]
[1736427721453,10.58787268,190.53,190.42,10.58787268]
[1736427721454,2.6269,190.44,190.42,10.58787268]
[1736427721655,1.5524,190.52,190.42,10.58787268]
[1736427721950,2.6267,190.46,190.42,10.58787268]
[1736427722257,2.6267,190.46,190.42,13.21507268]
[1736427723953,2.6262,190.49,190.46,2.6265]
[1736427728263,1.6018,190.55,190.46,2.6265]
[1736427728264,2.6261,190.5,190.46,2.6265]
[1736427731165,2.6261,190.5,190.47,2.6265]
[1736427731570,2.6259,190.52,190.48,2.6263]
[1736427731966,2.6259,190.52,190.45,10.58787268]
[1736427732363,2.6259,190.52,190.48,2.6262]
[1736427733057,1.6018,190.55,190.42,10.58787268]
[1736427733058,10.58787268,190.54,190.42,10.58787268]
[1736427733572,2.6265,190.47,190.43,2.6269]
[1736427733967,2.6265,190.47,190.42,10.58787268]
[1736427734163,2.6262,190.5,190.47,2.6264]
[1736427734370,1.6018,190.55,190.45,10.58787268]
[1736427735666,2.6261,190.51,190.48,2.6263]
[1736427735871,1.6018,190.55,190.48,2.6263]
[1736427736072,1.6018,190.55,190.45,10.58787268]
[1736427736270,2.6263,190.49,190.46,2.6266]
[1736427736468,1.6018,190.55,190.43,1.5574]
[1736427737772,2.6259,190.52,190.49,2.6262]
[1736427737972,1.6018,190.55,190.49,2.6262]
[1736427738868,1.6018,190.55,190.47,10.58787268]
[1736427739063,1.6018,190.55,190.48,2.6263]
[1736427739269,1.6018,190.55,190.47,10.58787268]
[1736427739469,12.18967268,190.55,190.45,2.6267]
[1736427740066,2.6264,190.48,190.45,2.6267]
[1736427740472,2.6262,190.49,190.46,2.6266]
[1736427741978,12.18967268,190.55,190.46,2.6266]
[1736427742170,12.18967268,190.55,190.44,1.5164]
[1736427742374,12.18967268,190.55,190.42,10.58787268]
[1736427742575,10.58787268,190.52,190.42,10.58787268]
[1736427742975,12.18967268,190.55,190.42,10.58787268]
[1736427743377,2.6266,190.46,190.42,10.58787268]
[1736427744381,12.18967268,190.55,190.42,10.58787268]
[1736427745382,1.6018,190.55,190.47,10.58787268]
[1736427745679,2.6259,190.52,190.49,2.6262]
[1736427745880,1.5999,190.56,190.49,2.6262]
[1736427746477,2.6258,190.52,190.49,2.6262]
[1736427747076,2.626,190.51,190.48,2.6263]
[1736427747281,10.58787268,190.55,190.43,1.541]
[1736427747879,2.6264,190.48,190.45,2.6267]
[1736427748279,2.6258,190.52,190.45,2.6267]
[1736427748481,10.58787268,190.55,190.45,2.6267]
[1736427750181,2.6264,190.48,190.45,2.6267]
[1736427750384,10.58787268,190.55,190.44,2.6268]
[1736427750584,10.58787268,190.55,190.43,1.541]
[1736427750784,2.6266,190.47,190.43,1.541]
[1736427750982,10.58787268,190.55,190.43,1.541]
[1736427751379,2.6263,190.49,190.46,2.6265]
[1736427751980,1.5999,190.56,190.47,2.6263]
[1736427751981,2.6257,190.53,190.47,2.6263]
[1736427752277,1.5999,190.56,190.45,10.58787268]
[1736427753090,1.5999,190.56,190.48,2.6263]
[1736427753091,2.626,190.51,190.48,2.6263]
[1736427765291,2.626,190.51,190.49,6.77730289]
[1736427774299,1.5999,190.56,190.49,6.77730289]
[1736427774498,1.5999,190.56,190.51,6.77730289]
[1736427774899,8.37720289,190.56,190.46,1.5502]
[1736427775203,6.77730289,190.54,190.47,6.77730289]
[1736427775401,6.77730289,190.52,190.38,13.62280995]
[1736427775598,6.77730289,190.5,190.44,6.77730289]
[1736427776103,2.6266,190.47,190.44,9.40420289]
[1736427776701,2.6266,190.47,190.44,6.77730289]
[1736427778507,2.6266,190.47,190.43,2.627]
[1736427780009,2.6269,190.45,190.42,2.6271]
[1736427780210,6.77730289,190.46,190.4,6.77730289]
[1736427780403,6.77730289,190.46,190.38,11.66808624]
[1736427780912,2.6273,190.42,190.38,14.29578624]
[1736427781910,2.6273,190.42,190.39,2.6276]
[1736427782412,6.77730289,190.48,190.4,6.77730289]
[1736427782603,25.33803189,190.52,190.42,6.77730289]
[1736427782803,6.77730289,190.5,190.44,6.77730289]
[1736427783008,32.11533478,190.52,190.46,6.77730289]
[1736427783306,23.77813189,190.52,190.48,6.77730289]
[1736427783507,23.77813189,190.52,190.5,6.77730289]
[1736427783703,181.5647911,190.55,190.5,6.77730289]
[1736427783704,1.5999,190.56,190.5,6.77730289]
[1736427785517,2.6256,190.54,190.5,9.40330289]
[1736427786419,2.6256,190.54,190.52,6.77730289]
[1736427787311,1.5999,190.56,190.43,4.6972]
[1736427787518,1.5999,190.56,190.47,2.6264]
[1736427788313,2.6259,190.51,190.47,2.6264]
[1736427790116,2.6259,190.51,190.46,10.58710684]
[1736427790318,2.6259,190.51,190.48,2.6263]
[1736427791925,2.6258,190.52,190.48,2.6263]
[1736427792817,2.6258,190.52,190.49,2.6262]
[1736427799334,1.5999,190.56,190.46,10.58710684]
[1736427799531,1.5999,190.56,190.43,3.1655]
[1736427799532,10.58710684,190.54,190.43,12.13500684]
[1736427799841,2.6266,190.47,190.4,10.58710684]
[1736427800036,10.58710684,190.51,190.37,15.39000684]
[1736427800228,10.58710684,190.48,190.37,12.21550684]
[1736427800530,2.6273,190.42,190.38,2.6277]
[1736427800729,1.5537,190.47,190.38,2.6277]
[1736427800929,1.5537,190.47,190.33,7.2394266]
[1736427800930,10.58710684,190.45,190.33,7.2394266]
[1736427801132,10.58710684,190.42,190.33,7.2394266]
[1736427801639,2.6277,190.39,190.34,2.6283]
[1736427802034,2.6277,190.39,190.32,1.6284]
[1736427802236,3.0627,190.44,190.32,1.6284]
[1736427802433,3.0627,190.44,190.34,10.58710684]
[1736427802839,3.0627,190.44,190.38,2.6277]
[1736427803136,2.6272,190.42,190.38,2.6277]
[1736427803338,2.6272,190.42,190.37,2.6279]
[1736427804835,3.0627,190.44,190.37,2.6279]
[1736427805030,3.0627,190.44,190.35,2.6281]
[1736427805432,2.6279,190.37,190.32,1.6284]
[1736427806333,2.6279,190.37,190.33,2.6283]
[1736427806637,10.58710684,190.43,190.32,1.6284]
[1736427807134,2.6275,190.4,190.35,2.628]
[1736427807339,10.58710684,190.43,190.35,2.628]
[1736427807543,10.58710684,190.43,190.32,1.6284]
[1736427808831,2.6278,190.38,190.34,2.6282]
[1736427809842,2.628,190.37,190.33,2.6284]
[1736427810042,10.58710684,190.4,190.28,10.58710684]
[1736427810239,1.4763,190.39,190.28,10.58710684]
[1736427811140,2.6284,190.34,190.3,2.6287]
[1736427813742,1.4763,190.39,190.28,10.58710684]
[1736427813938,10.58710684,190.37,190.25,10.58710684]
[1736427814446,1.5031,190.36,190.27,2.6292]
[1736427815045,2.6287,190.31,190.27,2.6292]
[1736427815241,2.6287,190.31,190.28,2.6291]
[1736427815449,2.6287,190.31,190.28,9.42064353]
[1736427816948,6.79154353,190.33,190.28,6.79154353]
[1736427817145,6.79154353,190.33,190.26,6.79154353]
[1736427817649,6.79154353,190.33,190.26,9.42094353]
[1736427818148,2.6293,190.27,190.23,4.1251]
[1736427818449,6.79154353,190.29,190.23,10.91664353]
[1736427818748,1.5115,190.35,190.23,10.91664353]
[1736427818749,1.5115,190.35,190.26,2.6294]
[1736427818952,8.30304353,190.35,190.29,6.79154353]
[1736427819546,2.6288,190.3,190.27,9.42064353]
[1736427819750,6.79154353,190.31,190.23,1.4954]
[1736427819943,6.79154353,190.27,190.21,6.79154353]
[1736427820147,2.6299,190.22,190.21,6.79154353]
[1736427820353,6.79154353,190.25,190.19,6.79154353]
[1736427820748,6.79154353,190.23,190.09,1.5466]
[1736427820948,6.79154353,190.21,190.16,6.79154353]
[1736427821153,6.79154353,190.21,190.1,1.5534]
[1736427821456,2.6306,190.17,190.14,6.79154353]
[1736427822855,2.6306,190.17,190.12,2.6312]
[1736427823062,2.6306,190.17,190.14,6.79154353]
[1736427823353,2.6306,190.17,190.13,2.6311]
[1736427831560,2.6306,190.17,190.14,2.631]
[1736427834153,1.4878,190.23,190.14,2.631]
[1736427834355,1.4878,190.23,190.12,10.62670114]
[1736427834562,1.4878,190.23,190.15,10.62670114]
[1736427835061,2.6299,190.22,190.18,2.6304]
[1736427840071,2.6298,190.23,190.2,2.6302]
[1736427840366,15.20670114,190.27,190.16,1.5545]
[1736427840770,2.6298,190.24,190.2,2.6301]
[1736427841068,2.6298,190.24,190.16,1.5545]
[1736427841262,2.6298,190.24,190.2,2.6301]
[1736427841863,2.6296,190.25,190.18,10.62670114]
[1736427842063,4.58,190.27,190.22,2.6298]
[1736427842265,4.58,190.27,190.18,10.62670114]
[1736427842470,2.6298,190.23,190.19,2.6302]
[1736427842871,2.6298,190.23,190.16,1.5545]
[1736427843271,2.6298,190.23,190.18,6.79859794]
[1736427843571,2.6298,190.23,190.2,2.6301]
[1736427845671,6.79859794,190.23,190.17,2.6306]
[1736427845863,6.79859794,190.21,190.15,6.79859794]
[1736427846774,2.6306,190.18,190.15,9.42939794]
[1736427847672,2.6306,190.18,190.15,6.79859794]
[1736427847867,2.6306,190.18,190.14,2.6309]
[1736427848463,6.79859794,190.19,190.08,3.2054]
[1736427848664,6.79859794,190.15,190.09,6.79859794]
[1736427849167,2.6309,190.15,190.11,2.6314]
[1736427849573,2.6309,190.16,190.11,2.6314]
[1736427849773,3.0534,190.19,190.1,10.63183055]
[1736427849975,1.519,190.19,190.1,10.63183055]
[1736427850273,2.6305,190.18,190.1,10.63183055]
[1736427850473,1.519,190.19,190.1,10.63183055]
[1736427850671,2.6309,190.16,190.1,10.63183055]
[1736427851176,2.6309,190.15,190.12,2.6313]
[1736427851570,1.519,190.19,190.08,1.5857]
[1736427851770,2.6309,190.15,190.1,2.6316]
[1736427851977,1.5344,190.18,190.1,2.6316]
[1736427852175,1.5344,190.18,190.08,1.5857]
[1736427852385,10.63183055,190.17,190.08,4.2175]
[1736427852575,10.63183055,190.17,190.04,10.63183055]
[1736427852970,10.63183055,190.14,190.04,10.63183055]
[1736427853584,2.632,190.08,190.04,13.26413055]
[1736427853771,10.63183055,190.14,190.04,10.63183055]
[1736427853970,10.63183055,190.17,190.04,10.63183055]
[1736427854176,10.63183055,190.17,190.07,2.632]
[1736427854478,10.63183055,190.17,190.04,10.63183055]
[1736427854677,1.5344,190.18,190.07,10.63183055]
[1736427855072,1.5344,190.18,190.08,1.6339]
[1736427855379,2.6309,190.16,190.12,2.6312]
[1736427855577,1.5344,190.18,190.12,2.6312]
[1736427855874,10.63183055,190.17,190.04,10.63183055]
[1736427857068,2.6316,190.11,190.07,2.632]
[1736427857877,2.6317,190.1,190.06,2.6321]
[1736427858072,10.63183055,190.17,190.06,2.6321]
[1736427858571,2.6318,190.09,190.06,2.6321]
[1736427860080,2.6318,190.09,190.05,2.6322]
[1736427860472,26.41183055,190.17,190.04,10.63183055]
[1736427860674,2.6321,190.07,190.03,4.2664]
[1736427861182,2.6324,190.05,190.01,13.26463055]
[1736427861377,2.6324,190.05,190.01,10.63183055]
[1736427861581,4.58,190.12,190.01,10.63183055]
[1736427861779,2.6316,190.1,190.04,10.63183055]
[1736427862281,2.6314,190.12,190.08,2.6318]
[1736427862482,2.6314,190.12,190.04,10.63183055]
[1736427862683,10.63183055,190.16,190.04,10.63183055]
[1736427863382,2.6316,190.11,190.07,2.6319]
[1736427863578,10.63183055,190.16,190.04,10.63183055]
[1736427864179,10.63183055,190.16,190.06,2.6321]
[1736427865286,2.6317,190.09,190.06,2.6321]
[1736427865479,10.63183055,190.16,190.04,13.26423055]
[1736427865781,2.6321,190.07,190.04,2.6324]
[1736427865983,10.63183055,190.13,190.05,2.6323]
[1736427866283,2.632,190.07,190.01,10.63183055]
[1736427866786,2.632,190.07,190.04,2.6323]
[1736427866985,2.6319,190.08,190.01,10.63183055]
[1736427867582,2.6317,190.1,190.04,10.63183055]
[1736427867883,10.63183055,190.16,190.04,10.63183055]
[1736427868385,2.6318,190.09,190.05,2.6322]
[1736427869285,2.6319,190.08,190.05,9.440007]
[1736427869585,2.6319,190.08,190.05,6.807807]
[1736427871279,6.807807,190.12,189.98,1.4957]
[1736427871485,2.6323,190.05,190.03,6.807807]
[1736427871780,6.807807,190.1,190.03,6.807807]
[1736427871985,6.807807,190.1,190.05,6.807807]
[1736427872485,2.6322,190.06,190.05,6.807807]
[1736427872682,2.6322,190.06,190.02,2.6326]
[1736427872877,2.6319,190.08,190.03,6.807807]
[1736427873081,6.807807,190.1,190.03,6.807807]
[1736427873587,2.6322,190.06,190.03,6.807807]
[1736427873888,6.807807,190.1,190.03,6.807807]
[1736427874391,2.6328,190.02,189.99,2.6331]
[1736427874581,2.6328,190.02,189.99,9.440907]
[1736427875781,2.6328,190.02,189.99,6.807807]
[1736427879184,2.6331,189.99,189.96,4.2099]
[1736427879484,2.6331,189.99,189.96,9.441307]
[1736427887493,2.6331,189.99,189.96,2.6335]
[1736427888591,15.78,190.01,189.78,145.534925]
[1736427888794,6.807807,189.83,189.78,145.534925]
[1736427889186,9.443107,189.83,189.82,10.00275751]
[1736427889492,9.443107,189.83,189.78,145.534925]
[1736427889493,6.807807,189.83,189.78,145.534925]
[1736427889694,6.807807,189.83,189.81,32.89931501]
[1736427889994,6.807807,189.83,189.68,8.85753533]
[1736427890191,6.807807,189.74,189.68,7.31013533]
[1736427890395,6.807807,189.72,189.68,7.31013533]
[1736427891197,6.807807,189.7,189.68,7.31013533]
[1736427891491,4.64,189.74,189.68,7.31013533]
[1736427891492,9.61667138,189.72,189.68,7.31013533]
[1736427891701,9.61667138,189.75,189.62,9.61667138]
[1736427892097,9.61667138,189.75,189.65,9.61667138]
[1736427892703,9.61667138,189.75,189.67,2.6375]
[1736427892891,9.61667138,189.75,189.65,9.61667138]
[1736427893090,9.61667138,189.75,189.61,4.66]
[1736427893297,9.61667138,189.72,189.61,14.27667138]
[1736427893495,12.25357138,189.72,189.63,2.638]
[1736427893793,9.61667138,189.72,189.63,2.638]
[1736427894395,2.637,189.71,189.64,2.6379]
[1736427896000,2.637,189.71,189.61,9.61667138]
[1736427896602,2.637,189.71,189.64,2.6378]
[1736427897103,2.637,189.71,189.65,2.6378]
[1736427897606,9.61667138,189.75,189.67,2.6375]
[1736427897899,9.61667138,189.75,189.64,9.61667138]
[1736427898806,2.6366,189.75,189.64,9.61667138]
[1736427899007,4.66,189.76,189.64,9.61667138]
[1736427899910,2.6366,189.74,189.67,2.6374]
[1736427900113,2.6366,189.74,189.64,9.61667138]
[1736427901105,2.6366,189.74,189.67,2.6376]
[1736427901306,9.61667138,189.78,189.65,4.64]
[1736427901501,9.61667138,189.78,189.67,9.61667138]
[1736427901705,9.61667138,189.78,189.7,2.637]
[1736427901902,2.6363,189.77,189.7,9.61667138]
[1736427902102,9.61667138,189.81,189.7,9.61667138]
[1736427902303,9.61667138,189.81,189.73,2.6367]
[1736427902507,9.61667138,189.81,189.72,4.66]
[1736427902904,9.61667138,189.78,189.69,2.6372]
[1736427903111,2.6374,189.69,189.6,1.5541]
[1736427903307,9.61667138,189.72,189.6,4.5402]
[1736427903706,2.6373,189.69,189.63,2.638]
[1736427904603,9.61667138,189.72,189.63,2.638]
[1736427905315,2.6374,189.69,189.6,4.5402]
[1736427905813,2.6377,189.67,189.6,4.5402]
[1736427906708,2.6377,189.67,189.61,2.6383]
[1736427907209,2.6377,189.66,189.61,2.6383]
[1736427907809,2.6377,189.66,189.57,9.61667138]
[1736427908411,2.6377,189.66,189.59,2.6386]
[1736427908702,2.6376,189.67,189.57,9.61667138]
[1736427909107,2.6376,189.67,189.6,9.61667138]
[1736427909313,9.61667138,189.72,189.63,2.6381]
[1736427910115,2.6375,189.68,189.63,2.6381]
[1736427911011,9.61667138,189.72,189.62,2.6382]
[1736427911012,2.6377,189.66,189.62,2.6382]
[1736427913318,2.6376,189.67,189.62,2.6382]
[1736427913619,2.6376,189.67,189.6,9.61667138]
[1736427913817,2.6373,189.69,189.64,2.6379]
[1736427914414,2.6374,189.68,189.64,2.6379]
[1736427914917,9.61667138,189.72,189.64,2.6379]
[1736427915520,9.61667138,189.72,189.63,2.6381]
[1736427916113,2.6377,189.66,189.63,2.6381]
[1736427917116,9.61667138,189.69,189.61,1.5984]
[1736427917316,2.6379,189.65,189.61,1.5984]
[1736427918210,2.6379,189.65,189.61,4.2368]
[1736427918817,2.6377,189.66,189.62,2.6382]
[1736427919016,9.61667138,189.72,189.61,1.5984]
[1736427919319,9.61667138,189.68,189.61,1.5984]
[1736427919517,145.2518329,189.71,189.56,9.61667138]
[1736427919714,9.61667138,189.72,189.56,9.61667138]
[1736427919922,2.6378,189.66,189.56,9.61667138]
[1736427921121,2.6378,189.66,189.62,2.6382]
[1736427921322,9.61667138,189.72,189.56,9.61667138]
[1736427921517,2.6376,189.67,189.59,9.61667138]
[1736427921821,9.61667138,189.72,189.59,9.61667138]
[1736427922018,2.6374,189.69,189.59,9.61667138]
[1736427922223,7.8284,189.73,189.64,2.6379]
[1736427922713,2.6374,189.69,189.64,2.6379]
[1736427923924,2.6374,189.69,189.65,2.6378]
[1736427926119,2.6369,189.72,189.68,2.6374]
[1736427926422,145.2518329,189.75,189.65,9.61667138]
[1736427926823,2.6367,189.74,189.7,2.637]
[1736427927022,2.6367,189.74,189.65,9.61667138]
[1736427927222,2.6367,189.74,189.71,2.637]
[1736427928019,2.6366,189.75,189.71,2.637]
[1736427928424,2.6366,189.75,189.72,2.6368]
[1736427928625,2.6366,189.75,189.68,9.61667138]
[1736427929823,2.6362,189.78,189.68,9.61667138]
[1736427930024,9.61667138,189.81,189.73,2.6366]
[1736427930221,2.6362,189.77,189.73,2.6366]
[1736427930726,2.6362,189.77,189.69,3.1341]
[1736427930926,2.6362,189.77,189.74,2.6366]
[1736427931429,9.61667138,189.81,189.74,2.6366]
[1736427931629,2.6361,189.78,189.74,2.6366]
[1736427931926,9.61667138,189.81,189.76,2.6363]
[1736427932128,13.63040437,189.84,189.76,2.6363]
[1736427933430,2.6357,189.81,189.77,2.6361]
[1736427934031,13.63040437,189.84,189.71,14.43667138]
[1736427934326,2.6355,189.82,189.71,14.43667138]
[1736427934629,9.61667138,189.87,189.79,2.6358]
[1736427934832,2.6354,189.83,189.79,2.6358]
[1736427935327,9.61667138,189.87,189.78,2.636]
[1736427935827,9.61667138,189.84,189.76,2.6363]
[1736427936129,2.6361,189.78,189.71,14.43667138]
[1736427936329,2.6361,189.78,189.74,2.6365]
[1736427936630,2.6361,189.78,189.71,14.43667138]
[1736427937021,2.6361,189.78,189.74,2.6365]
[1736427938433,2.6359,189.79,189.75,2.6364]
[1736427939131,9.61667138,189.81,189.69,4.7243]
[1736427939427,9.61667138,189.78,189.69,3.1341]
[1736427939933,9.61667138,189.75,189.64,1.531]
[1736427941133,2.637,189.71,189.67,2.6375]
[1736427943328,9.61667138,189.75,189.64,1.531]
[1736427943532,2.6372,189.7,189.66,2.6377]
[1736427945034,2.6374,189.69,189.64,2.6379]
[1736427945231,9.61667138,189.75,189.6,3.1547]
[1736427945630,2.6369,189.72,189.68,2.6374]
[1736427945832,4.8,189.76,189.68,2.6374]
[1736427945833,14.41667138,189.76,189.68,2.6374]
[1736427946036,14.41667138,189.76,189.6,3.1547]
[1736427946937,2.6372,189.7,189.6,3.1547]
[1736427947137,14.41667138,189.76,189.6,3.1547]
[1736427947138,9.61667138,189.73,189.6,3.1547]
[1736427947739,2.6375,189.68,189.64,2.6379]
[1736427948435,2.6375,189.68,189.65,2.6378]
[1736427948636,9.61667138,189.73,189.6,3.1547]
[1736427948831,9.61667138,189.73,189.6,12.77137138]
[1736427949038,3.1494,189.75,189.6,12.77137138]
[1736427949039,9.61667138,189.7,189.6,12.77137138]
[1736427949836,2.6376,189.67,189.63,2.638]
[1736427950642,9.61667138,189.7,189.6,12.77137138]
[1736427950836,9.61667138,189.7,189.62,2.6382]
[1736427951242,2.6378,189.66,189.62,2.6382]
[1736427951442,1.5724,189.72,189.6,12.77137138]
[1736427951944,2.6375,189.68,189.64,2.6379]
[1736427952643,2.6377,189.67,189.63,2.638]
[1736427953444,2.6377,189.66,189.63,2.638]
[1736427953745,9.61667138,189.7,189.6,3.1547]
[1736427953946,2.6379,189.65,189.62,2.6383]
[1736427954147,2.6379,189.65,189.6,3.1547]
[1736427954445,2.6379,189.65,189.58,9.61667138]
[1736427954648,2.6379,189.65,189.61,2.6384]
[1736427957944,2.6379,189.65,189.58,9.61667138]
[1736427958247,2.6379,189.65,189.62,2.6383]
[1736427958949,1.5724,189.72,189.63,2.638]
[1736427959346,2.6375,189.68,189.61,9.61667138]
[1736427959549,1.5724,189.72,189.65,2.6377]
[1736427960441,1.5724,189.72,189.66,2.6377]
[1736427960845,1.5724,189.72,189.62,1.5816]
[1736427961447,2.6375,189.68,189.65,2.6378]
[1736427961648,1.5724,189.72,189.62,1.5816]
[1736427962050,9.61667138,189.7,189.62,2.6381]
[1736427962647,2.6378,189.65,189.62,2.6381]
[1736427963353,2.6377,189.66,189.64,2.6379]
[1736427964657,9.61667138,189.73,189.66,2.6377]